lending/lending_fUSD_20251121
["ID","MTS","AMOUNT","RATE_DAILY","PERIOD"]
[394594711,1763747581002,-478.87,0.00043587,30]
[394594712,1763747581038,-560.12,0.00043587,30]
[394594713,1763747581068,-807.53,0.00043587,30]
[394594714,1763747581098,-701.23,0.00043587,30]
[394594715,1763747581130,-701.23,0.00043587,30]
[394594716,1763747581160,-701.23,0.00043587,30]
[394594717,1763747581190,-701.23,0.00043587,30]
[394594718,1763747581219,-701.23,0.00043587,30]
[394594719,1763747581248,-701.23,0.00043587,30]
[394594720,1763747581279,-701.23,0.00043587,30]
[394594721,1763747581308,-701.23,0.00043587,30]
[394594722,1763747581338,-1263.94518826,0.000437,120]
[394594723,1763747581369,-150.0,0.00043706,120]
[394594724,1763747581405,-150.0,0.00043724,30]
[394594725,1763747581437,-150.0,0.00043724,30]
[394594726,1763747581472,-500.51551435,0.000438,30]
[394594727,1763747581511,-679.13132108,0.000438,120]
[394594728,1763747581546,-386.68686508,0.000438,30]
[394594729,1763747581582,-2308.71,0.000438,120]
[394594730,1763747581617,-200.0,0.00043802,120]
[394594731,1763747581653,-500.0,0.00043821,120]
[394594732,1763747581686,-500.0,0.00043854,60]
[394594733,1763747581719,-163.0,0.0004389,90]
[394594734,1763747581753,-2047.9075405,0.000439,30]
[394594735,1763747581785,-1033.7,0.0004392,120]
[394594736,1763747581817,-186.68983953,0.00043959,30]
[394594737,1763747581851,-150.0,0.00043959,30]
[394594738,1763747581902,-940.56058086,0.00043959,30]
[394594739,1763747581935,-150.0,0.00043959,30]
[394594740,1763747581969,-1133.33214491,0.00043959,30]
[394594741,1763747582005,-150.0,0.00043959,30]
[394594742,1763747582037,-3499.88488754,0.00043959,30]
[394594743,1763747582072,-150.0,0.00043959,30]
[394594744,1763747582104,-1045.73681002,0.00043959,30]
[394594745,1763747582135,-2179.70036685,0.00043987,120]
[394594746,1763747582167,-13535.0,0.00044,120]
[394594747,1763747582200,-574.0,0.00044,120]
[394594748,1763747582232,-1000.0,0.00044,120]
[394594749,1763747582262,-300.0,0.00044,120]
[394594750,1763747582292,-152.0,0.00044,120]
[394594751,1763747582324,-224.65737287,0.00044,30]
[394594752,1763747582359,-348.76260312,0.00044,120]
[394594753,1763747582393,-1518.3029682,0.00044,120]
[394594754,1763747582429,-238.41542351,0.00044,120]
[394594755,1763747582461,-1721.03,0.00044,120]
[394594756,1763747582495,-4001.17358768,0.00044,62]
[394594757,1763747582531,-5294.55646241,0.00044,120]
[394594758,1763747582564,-176.0,0.00044,120]
[394594759,1763747582596,-548.6851,0.00044,57]
[394594760,1763747582630,-150.0,0.00044017,120]
[394594761,1763747582663,-150.0,0.00044023,120]
[394594762,1763747582693,-500.0,0.00044128,60]
[394594763,1763747582726,-708363.15751605,0.00044193,120]
[394594764,1763747601657,-500.0,0.00025719,120]
[394594765,1763747601696,-500.0,0.00031951,120]
[394594766,1763747601743,-1000.0,0.0003689,90]
[394594767,1763747601775,-1000.0,0.0003689,90]
[394594768,1763747601816,-500.0,0.00038183,120]
[394594769,1763747601851,-500.0,0.000387,120]
[394594770,1763747601882,-500.0,0.000387,120]
[394594771,1763747601916,-500.0,0.000387,120]
[394594772,1763747601947,-500.0,0.000387,120]
[394594773,1763747601981,-500.0,0.000387,120]
[394594774,1763747602014,-200.0,0.00039999,31]
[394594775,1763747602045,-364.61251958,0.000404,120]
[394594776,1763747602074,-185.99440821,0.000404,120]
[394594777,1763747602109,-1092.10972532,0.00041069,50]
[394594778,1763747602138,-1080.46291106,0.00041069,50]
[394594779,1763747602168,-1017.95467673,0.0004132,50]
[394594780,1763747602212,-1119.36097687,0.0004132,50]
[394594781,1763747602244,-1102.09285624,0.0004132,50]
[394594782,1763747602276,-1043.79668568,0.0004132,50]
[394594783,1763747602310,-1131.76534818,0.0004132,50]
[394594784,1763747602342,-1055.80652859,0.0004132,50]
[394594785,1763747602377,-1154.48055233,0.0004132,50]
[394594786,1763747602412,-364.61251958,0.000416,120]
[394594787,1763747602471,-300.220153,0.00041934,108]
[394594788,1763747602507,-364.61251958,0.000429,120]
[394594789,1763747602544,-2733.65768359,0.00042927,120]
[394594790,1763747602578,-426.56612961,0.00043,30]
[394594791,1763747602614,-500.0,0.00044192,120]
[394594792,1763747602650,-2079080.2055188,0.00044193,120]
[394594793,1763747602688,-2787443.36303485,0.00044193,120]
[394594794,1763747602720,-150.0,0.00044193,120]
[394594795,1763747602752,-395.19220235,0.000442,120]
[394594796,1763747602790,-250.15478469,0.000442,120]
[394594797,1763747602823,-180.00033341,0.000442,120]
[394594798,1763747602858,-1669.34065712,0.000442,120]
[394594799,1763747602891,-364.61251958,0.000442,120]
[394594800,1763747602927,-150.0,0.00044212,120]
[394594801,1763747602959,-158.66495244,0.0004425,120]
[394594802,1763747602991,-426.56612961,0.000443,30]
[394594803,1763747603024,-108493.793673,0.000444,60]
[394594804,1763747605026,1000.0,0.000149,5]
[394594805,1763747609467,-150.0,0.00025,30]
[394594806,1763747609528,-500.0,0.000387,120]
[394594807,1763747609571,-200.0,0.00041613,120]
[394594808,1763747609629,-701.23,0.00043587,30]
[394594809,1763747609662,-300.220153,0.00043998,119]
[394594810,1763747609695,-391506.206327,0.000444,60]
[394594811,1763747609727,-500.0,0.00044402,60]
[394594812,1763747609756,-150.0,0.00044467,120]
[394594813,1763747609786,-152.0,0.000445,120]
[394594814,1763747609817,-1140.71083539,0.000445,120]
[394594815,1763747609848,-176.0,0.000445,120]
[394594816,1763747609878,-701.23,0.00044546,30]
[394594817,1763747609912,-701.23,0.00044546,30]
[394594818,1763747609944,-701.23,0.00044546,30]
[394594819,1763747609973,-701.23,0.00044546,30]
[394594820,1763747610004,-701.23,0.00044546,30]
[394594821,1763747610035,-688.76,0.00044546,30]
[394594822,1763747610066,-1033.7,0.0004464,120]
[394594823,1763747610096,-604.23749617,0.000448,120]
[394594824,1763747610127,-327.8575454,0.0004489,120]
[394594825,1763747610157,-378.9632151,0.000449,30]
[394594826,1763747610188,-50000.0,0.000449,120]
[394594827,1763747610218,-45308.0,0.000449,120]
[394594828,1763747610248,-500.0,0.0004495,60]
[394594829,1763747610276,-211.0,0.0004496,30]
[394594830,1763747610307,-50000.0,0.00045,45]
[394594831,1763747610336,-157.4,0.00045,85]
[394594832,1763747610364,-600.0,0.00045,120]
[394594833,1763747610392,-11612.0,0.00045,120]
[394594834,1763747610424,-1163.88380382,0.00045,120]
[394594835,1763747610457,-1069.6025421,0.00045,120]
[394594836,1763747610488,-2000.0,0.00045,60]
[394594837,1763747610519,-654.54442925,0.00045,120]
[394594838,1763747610549,-1888.29411937,0.00045,120]
[394594839,1763747610580,-256.48866625,0.00045,120]
[394594840,1763747610612,-15000.0,0.00045,30]
[394594841,1763747610647,-6055.59349277,0.00045,45]
[394594842,1763747610685,-477.01505988,0.00045,120]
[394594843,1763747610716,-621.223337,0.00045,120]
[394594844,1763747610747,-300.0,0.00045,120]
[394594845,1763747610777,-150.0,0.00045,120]
[394594846,1763747610806,-150.0,0.00045,120]
[394594847,1763747610839,-150.0,0.00045,120]
[394594848,1763747610870,-150.0,0.00045,120]
[394594849,1763747610903,-150.0,0.00045,120]
[394594850,1763747610935,-150.0,0.00045,120]
[394594851,1763747610965,-4599.643313,0.00045,60]
[394594852,1763747610998,-300.0,0.00045,120]
[394594853,1763747611028,-200.0,0.00045,120]
[394594854,1763747611057,-2500.0,0.00045,30]
[394594855,1763747611088,-176.0,0.00045,120]
[394594856,1763747611117,-160.88069649,0.00045,120]
[394594857,1763747611146,-300.0,0.00045,120]
[394594858,1763747611176,-150.0,0.00045,120]
[394594859,1763747611204,-150.0,0.00045,120]
[394594860,1763747611235,-150.0,0.00045,120]
[394594861,1763747611265,-420.0,0.00045,120]
[394594862,1763747611295,-152.0,0.000451,120]
[394594863,1763747611331,-224.57482387,0.00045126,120]
[394594864,1763747611362,-236.52851523,0.000452,120]
[394594865,1763747611396,-500.0,0.00045224,60]
[394594866,1763747611621,-500.0,0.00045347,120]
[394594867,1763747611654,-1033.7,0.0004536,120]
[394594868,1763747611684,-500000.0,0.000454,60]
[394594869,1763747611715,-500.0,0.00045498,60]
[394594870,1763747611746,-1006.78113254,0.000455,120]
[394594871,1763747611776,-176.0,0.000455,120]
[394594872,1763747611807,-395.19220235,0.000455,120]
[394594873,1763747611836,-250.15478469,0.000455,120]
[394594874,1763747611867,-180.00033341,0.000455,120]
[394594875,1763747611904,-1669.34065712,0.000455,120]
[394594876,1763747611932,-364.61251958,0.000455,120]
[394594877,1763747611962,-152.0,0.000456,120]
[394594878,1763747611992,-150.0,0.00045688,120]
[394594879,1763747612023,-899.07675148,0.000457,120]
[394594880,1763747612054,-300.0,0.00046,120]
[394594881,1763747612084,-1000.0,0.00046,120]
[394594882,1763747612113,-1123.52682799,0.00046,120]
[394594883,1763747612143,-7003.77485382,0.00046,120]
[394594884,1763747612175,-1000.0,0.00046,30]
[394594885,1763747612207,-204.6067137,0.00046,30]
[394594886,1763747612238,-587.09782845,0.00046,30]
[394594887,1763747612270,-156.92164757,0.00046,120]
[394594888,1763747612302,-1611.78637637,0.00046,90]
[394594889,1763747612332,-1234.66211159,0.00046,120]
[394594890,1763747612363,-762.281965,0.00046,120]
[394594891,1763747612395,-176.0,0.00046,120]
[394594892,1763747612430,-500.0,0.00046046,60]
[394594893,1763747612462,-1033.7,0.0004608,120]
[394594894,1763747612495,-200.0,0.00046192,60]
[394594895,1763747612527,-1000.0,0.000462,120]
[394594896,1763747612559,-152.0,0.000462,120]
[394594897,1763747612590,-500.0,0.0004632,60]
[394594898,1763747612623,-371.75935096,0.000464,120]
[394594899,1763747612658,-500000.0,0.000464,60]
[394594900,1763747612688,-206.19673823,0.0004649,120]
[394594901,1763747612719,-176.0,0.000465,120]
[394594902,1763747612748,-500.0,0.00046501,120]
[394594903,1763747612781,-500.0,0.00046594,60]
[394594904,1763747612814,-150.0,0.00046662,120]
[394594905,1763747612844,-150.0,0.0004667,120]
[394594906,1763747612876,-152.0,0.000467,120]
[394594907,1763747612907,-1033.7,0.000468,120]
[394594908,1763747612936,-1729.68726163,0.000468,120]
[394594909,1763747612964,-800.0,0.0004688,120]
[394594910,1763747612996,-50000.0,0.000469,120]
[394594911,1763747613027,-1488.17341519,0.000469,120]
[394594912,1763747613059,-1669.34065712,0.000469,120]
[394594913,1763747613089,-150.0,0.00046909,120]
[394594914,1763747613119,-211.0,0.0004698,30]
[394594915,1763747613151,-11612.0,0.00047,120]
[394594916,1763747613182,-2000.0,0.00047,60]
[394594917,1763747613212,-1542.01379075,0.00047,120]
[394594918,1763747613242,-214.2912638,0.00047,120]
[394594919,1763747613274,-1022.0,0.00047,120]
[394594920,1763747613310,-176.0,0.00047,120]
[394594921,1763747613344,-150.0,0.00047014,30]
[394594922,1763747613380,-500.0,0.00047142,60]
[394594923,1763747613414,-152.0,0.000472,120]
[394594924,1763747613451,-270.69,0.0004726,120]
[394594925,1763747613484,-693.46366347,0.000473,120]
[394594926,1763747613517,-294.74236777,0.00047308,120]
[394594927,1763747613550,-223.84299385,0.00047318,120]
[394594928,1763747613588,-223.84299385,0.00047318,120]
[394594929,1763747613623,-224.57482387,0.00047318,120]
[394594930,1763747613656,-150.0,0.00047382,120]
[394594931,1763747613686,-500000.0,0.000474,60]
[394594932,1763747613724,-176.0,0.000474,120]
[394594933,1763747613756,-500.0,0.00047416,60]
[394594934,1763747613789,-1222.78631795,0.000475,120]
[394594935,1763747613819,-842.87113926,0.000475,120]
[394594936,1763747613850,-1033.7,0.0004752,120]
[394594937,1763747613881,-1444.0,0.00047562,120]
[394594938,1763747613912,-500.0,0.00047656,120]
[394594939,1763747613942,-588.0,0.0004768,120]
[394594940,1763747613971,-152.0,0.000478,120]
[394594941,1763747614001,-163.0,0.0004788,90]
[394594942,1763747614033,-528.1466,0.0004788,120]
[394594943,1763747614064,-342.1986432,0.0004789,80]
[394594944,1763747614096,-660.0,0.000479,120]
[394594945,1763747614294,-518.0,0.000479,120]
[394594946,1763747614337,-176.0,0.000479,120]
[394594947,1763747614371,-150.0,0.00047905,120]
[394594948,1763747614404,-300.0,0.00048,120]
[394594949,1763747614436,-327.1638361,0.00048,120]
[394594950,1763747614464,-1230.47935768,0.00048,120]
[394594951,1763747614495,-530.14651721,0.00048,120]
[394594952,1763747614526,-23664.0,0.00048,120]
[394594953,1763747614557,-2825.88093927,0.00048,120]
[394594954,1763747614586,-815.54,0.00048,120]
[394594955,1763747614616,-650.0,0.00048,120]
[394594956,1763747614651,-500.0,0.00048,120]
[394594957,1763747614688,-150.0,0.00048,120]
[394594958,1763747614720,-150.0,0.00048,120]
[394594959,1763747614751,-150.0,0.00048,120]
[394594960,1763747614781,-150.0,0.00048,120]
[394594961,1763747614812,-150.0,0.00048,120]
[394594962,1763747614843,-1234.66211159,0.00048,120]
[394594963,1763747614875,-762.281965,0.00048,120]
[394594964,1763747614910,-500.0,0.00048,120]
[394594965,1763747614942,-50000.0,0.00048,33]
[394594966,1763747614972,-900.0,0.00048,120]
[394594967,1763747615003,-150.0,0.00048,120]
[394594968,1763747615033,-150.0,0.00048,120]
[394594969,1763747615062,-150.0,0.00048,120]
[394594970,1763747615106,-700.0,0.00048,120]
[394594971,1763747615151,-200.0,0.0004811,90]
[394594972,1763747615196,-2100.0,0.0004818,90]
[394594973,1763747615239,-500.0,0.00048238,60]
[394594974,1763747615284,-1033.7,0.0004824,120]
[394594975,1763747615328,-152.0,0.000483,120]
[394594976,1763747615373,-1669.34065712,0.000483,120]
[394594977,1763747615416,-373.76971431,0.00048316,30]
[394594978,1763747615466,-500000.0,0.000484,60]
[394594979,1763747615512,-176.0,0.000484,120]
[394594980,1763747615556,-150.0,0.00048434,120]
[394594981,1763747615599,-579.2789741,0.000485,100]
[394594982,1763747615641,-377.44638675,0.00048512,60]
[394594983,1763747615700,-500.0,0.0004855,120]
[394594984,1763747615768,-150.0,0.00048657,120]
[394594985,1763747615837,-169.37239131,0.000487,120]
[394594986,1763747615905,-1000.0,0.000488,120]
[394594987,1763747615970,-1000.0,0.000488,120]
[394594988,1763747616032,-1000.0,0.000488,120]
[394594989,1763747616094,-1000.0,0.000488,120]
[394594990,1763747616160,-1000.0,0.000488,120]
[394594991,1763747616220,-428.63541687,0.000488,120]
[394594992,1763747616282,-1000.0,0.000488,120]
[394594993,1763747616340,-1000.0,0.000488,120]
[394594994,1763747616399,-1000.0,0.000488,120]
[394594995,1763747616458,-1000.0,0.000488,120]
[394594996,1763747616520,-1000.0,0.000488,120]
[394594997,1763747616580,-1000.0,0.000488,120]
[394594998,1763747616640,-1000.0,0.000488,120]
[394594999,1763747616703,-1000.0,0.000488,120]
[394595000,1763747616767,-1000.0,0.000488,120]
[394595001,1763747616832,-650.0,0.000488,120]
[394595002,1763747616897,-500.0,0.00048811,120]
[394595003,1763747616963,-828.36050802,0.0004888,120]
[394595004,1763747617026,-152.0,0.000489,120]
[394595005,1763747617089,-497.71476776,0.000489,120]
[394595006,1763747617152,-1846.0,0.000489,120]
[394595007,1763747617212,-580.0,0.000489,120]
[394595008,1763747617270,-608.0,0.000489,120]
[394595009,1763747617329,-176.0,0.000489,120]
[394595010,1763747617395,-150.0,0.00048915,120]
[394595011,1763747617461,-1033.7,0.0004896,120]
[394595012,1763747617509,-211.0,0.0004899,30]
[394595013,1763747617558,-214.0,0.0004899,30]
[394595014,1763747617605,-789.36400827,0.00049,30]
[394595015,1763747617652,-470.71268159,0.00049,30]
[394595016,1763747617702,-11612.0,0.00049,120]
[394595017,1763747617745,-746.55140766,0.00049,120]
[394595018,1763747617785,-258.53650313,0.00049,120]
[394595019,1763747617827,-501.24315819,0.00049,120]
[394595020,1763747617871,-1170.52283829,0.00049,120]
[394595021,1763747617918,-600.0,0.00049,120]
[394595022,1763747618458,-50000.01,0.00049,120]
[394595023,1763747618579,-37000.01,0.00049,120]
[394595024,1763747618628,-5000.0,0.00049,30]
[394595025,1763747618677,-50000.0,0.00049,34]
[394595026,1763747618726,-725.50466235,0.00049,120]
[394595027,1763747618772,-150.0,0.0004901,120]
[394595028,1763747618817,-442.20650347,0.00049315,120]
[394595029,1763747618868,-478.87,0.00049319,30]
[394595030,1763747618918,-478.87,0.00049319,30]
[394595031,1763747618966,-478.87,0.00049319,30]
[394595032,1763747619010,-478.87,0.00049319,30]
[394595033,1763747619053,-500.0,0.00049334,60]
[394595034,1763747619096,-478.87,0.0004935,30]
[394595035,1763747619142,-478.87,0.0004935,30]
[394595036,1763747619191,-478.87,0.0004935,30]
[394595037,1763747619237,-478.87,0.0004935,30]
[394595038,1763747619281,-478.87,0.0004935,30]
[394595039,1763747619325,-152.0,0.000494,120]
[394595040,1763747619370,-176.0,0.000494,120]
[394595041,1763747619415,-4000.0,0.00049432,31]
[394595042,1763747619462,-150.0,0.00049456,30]
[394595043,1763747619511,-150.0,0.00049456,30]
[394595044,1763747619558,-150.0,0.00049456,30]
[394595045,1763747619603,-150.0,0.00049456,30]
[394595046,1763747619653,-150.0,0.00049456,30]
[394595047,1763747619702,-150.0,0.00049456,30]
[394595048,1763747619745,-380.0,0.000495,120]
[394595049,1763747619787,-635.33181671,0.000495,120]
[394595050,1763747619828,-12221.99457385,0.000495,120]
[394595051,1763747619873,-51990.0,0.000495,35]
[394595052,1763747619921,-1669.34065712,0.000497,120]
[394595053,1763747619969,-459.38504049,0.000498,30]
[394595054,1763747620018,-303.1784678,0.00049863,30]
[394595055,1763747620064,-176.0,0.000499,120]
[394595056,1763747620109,-1100.0,0.0004995,120]
[394595057,1763747620151,-1100.0,0.0004995,50]
[394595058,1763747620193,-1100.0,0.0004995,30]
[394595059,1763747620234,-1100.0,0.0004995,120]
[394595060,1763747620275,-1100.0,0.0004995,50]
[394595061,1763747620316,-1100.0,0.0004995,120]
[394595062,1763747620366,-1100.0,0.0004995,50]
[394595063,1763747620420,-500.0,0.00049966,120]
[394595064,1763747620471,-1000.0,0.00049999,120]
[394595065,1763747620518,-1249.07031294,0.00049999,120]
[394595066,1763747620566,-50000.0,0.0005,50]
[394595067,1763747620614,-899.17609974,0.0005,120]
[394595068,1763747620659,-545.03097666,0.0005,120]
[394595069,1763747620704,-155.3869891,0.0005,120]
[394595070,1763747620747,-200.0,0.0005,120]
[394595071,1763747620791,-300.0,0.0005,120]
[394595072,1763747620837,-1000.0,0.0005,120]
[394595073,1763747620881,-1000.0,0.0005,120]
[394595074,1763747620926,-1000.0,0.0005,30]
[394595075,1763747620971,-1000.0,0.0005,60]
[394595076,1763747621012,-1000.0,0.0005,120]
[394595077,1763747621066,-152.0,0.0005,120]
[394595078,1763747621109,-1228.18443667,0.0005,120]
[394595079,1763747621153,-1082.86972414,0.0005,30]
[394595080,1763747621199,-1405.22731574,0.0005,120]
[394595081,1763747621244,-2000.0,0.0005,60]
[394595082,1763747621288,-1862.04940074,0.0005,120]
[394595083,1763747621331,-41757.24213471,0.0005,120]
[394595084,1763747621377,-736.74069587,0.0005,120]
[394595085,1763747621422,-1086.75297482,0.0005,120]
[394595086,1763747621473,-225.47861101,0.0005,120]
[394595087,1763747621519,-165.4000134,0.0005,120]
[394595088,1763747621570,-500.0,0.0005,30]
[394595089,1763747621619,-1916.68588074,0.0005,30]
[394595090,1763747621669,-573.75883708,0.0005,120]
[394595091,1763747621717,-706.6084087,0.0005,120]
[394595092,1763747621763,-5000.0,0.0005,45]
[394595093,1763747621809,-476.44682064,0.0005,120]
[394595094,1763747621855,-10662.05283514,0.0005,30]
[394595095,1763747621903,-1358.18948285,0.0005,120]
[394595096,1763747621950,-1000.0,0.0005,120]
[394595097,1763747621995,-1000.0,0.0005,120]
[394595098,1763747622048,-1000.0,0.0005,120]
[394595099,1763747622094,-1000.0,0.0005,120]
[394595100,1763747622137,-1000.0,0.0005,120]
[394595101,1763747622178,-1289616.57,0.0005,120]
[394595102,1763747622440,-12135.0,0.0005,60]
[394595103,1763747622486,-500.0,0.0005,120]
[394595104,1763747622531,-500.0,0.0005,120]
[394595105,1763747622578,-500.0,0.0005,120]
[394595106,1763747622627,-500.0,0.0005,120]
[394595107,1763747622675,-2419.33061159,0.0005,120]
[394595108,1763747622723,-820.74895326,0.0005,120]
[394595109,1763747622767,-533.6754661,0.0005,120]
[394595110,1763747622812,-200.0,0.0005,120]
[394595111,1763747622860,-1000.0,0.0005,120]
[394595112,1763747622904,-414.67183079,0.0005,30]
[394595113,1763747622951,-922.88617748,0.000501,120]
[394595114,1763747622994,-150.0,0.000501,120]
[394595115,1763747623035,-150.0,0.00050128,120]
[394595116,1763747623076,-518.0158126,0.000503,120]
[394595117,1763747623117,-150.0,0.00050309,30]
[394595118,1763747623163,-150.0,0.00050309,30]
[394595119,1763747623212,-150.0,0.00050309,30]
[394595120,1763747623256,-150.0,0.00050309,30]
[394595121,1763747623299,-150.0,0.00050309,30]
[394595122,1763747623343,-150.0,0.00050309,30]
[394595123,1763747623389,-176.0,0.000504,120]
[394595124,1763747623437,-500.0,0.0005043,60]
[394595125,1763747623482,-1100.0,0.0005045,30]
[394595126,1763747623525,-152.0,0.000505,120]
[394595127,1763747623571,-486.98816031,0.000505,120]
[394595128,1763747623616,-35000.0,0.00050608,120]
[394595129,1763747623666,-1203.69501634,0.000508,120]
[394595130,1763747623712,-318.53297449,0.000508,120]
[394595131,1763747623758,-176.0,0.000509,120]
[394595132,1763747623804,-1100.0,0.00050949,120]
[394595133,1763747623852,-1100.0,0.00050949,120]
[394595134,1763747623900,-1100.0,0.00050949,120]
[394595135,1763747623950,-1000.0,0.00050999,120]
[394595136,1763747623998,-500.0,0.00051,120]
[394595137,1763747624044,-1147.4374189,0.00051,120]
[394595138,1763747624087,-534.63717754,0.00051,60]
[394595139,1763747624131,-150.0,0.00051,120]
[394595140,1763747624175,-1000.0,0.00051,120]
[394595141,1763747624217,-1000.0,0.00051,30]
[394595142,1763747624261,-1000.0,0.00051,120]
[394595143,1763747624305,-1000.0,0.00051,30]
[394595144,1763747624349,-1000.0,0.00051,60]
[394595145,1763747624392,-1000.0,0.00051,30]
[394595146,1763747624441,-1585.1711261,0.00051,60]
[394595147,1763747624486,-152.0,0.00051,120]
[394595148,1763747624533,-11612.0,0.00051,120]
[394595149,1763747624578,-2221.33236246,0.00051,120]
[394595150,1763747624621,-8169.80045508,0.00051,120]
[394595151,1763747624662,-2469.32422317,0.00051,120]
[394595152,1763747624702,-1524.56393001,0.00051,120]
[394595153,1763747624742,-500.0,0.0005112,120]
[394595154,1763747624782,-1669.34065712,0.000512,120]
[394595155,1763747624821,-150.0,0.00051279,120]
[394595156,1763747624860,-199.37733826,0.00051279,120]
[394595157,1763747624899,-176.0,0.000514,120]
[394595158,1763747624939,-847.58138231,0.000515,120]
[394595159,1763747624976,-10000.0,0.000515,120]
[394595160,1763747625014,-500.0,0.00051526,60]
[394595161,1763747625052,-615.0,0.0005155,120]
[394595162,1763747625090,-35000.0,0.00051569,120]
[394595163,1763747625129,-152.0,0.000516,120]
[394595164,1763747625169,-502.49402274,0.000517,120]
[394595165,1763747625208,-1100.0,0.00051748,30]
[394595166,1763747625250,-150.0,0.00051755,30]
[394595167,1763747625299,-150.0,0.00051755,30]
[394595168,1763747625353,-200.0,0.00051755,30]
[394595169,1763747625405,-1000.0,0.00051755,30]
[394595170,1763747625469,-1000.0,0.00051755,30]
[394595171,1763747625527,-1000.0,0.00051755,30]
[394595172,1763747625580,-1000.0,0.00051755,30]
[394595173,1763747625631,-1000.0,0.00051755,30]
[394595174,1763747625680,-1000.0,0.00051755,30]
[394595175,1763747625727,-1000.0,0.00051755,30]
[394595176,1763747625770,-1000.0,0.00051755,30]
[394595177,1763747625810,-1000.0,0.00051755,30]
[394595178,1763747625853,-1000.0,0.00051755,30]
[394595179,1763747625899,-1000.0,0.00051755,30]
[394595180,1763747625942,-1000.0,0.00051755,30]
[394595181,1763747625985,-1000.0,0.00051755,30]
[394595182,1763747626026,-1000.0,0.00051755,30]
[394595183,1763747626068,-1000.0,0.00051755,30]
[394595184,1763747626108,-1000.0,0.00051755,30]
[394595185,1763747626150,-1000.0,0.00051755,30]
[394595186,1763747626190,-1000.0,0.00051755,30]
[394595187,1763747626228,-1000.0,0.00051755,30]
[394595188,1763747626267,-1000.0,0.00051755,30]
[394595189,1763747626306,-1000.0,0.00051755,30]
[394595190,1763747626348,-1000.0,0.00051755,30]
[394595191,1763747626390,-1000.0,0.00051755,30]
[394595192,1763747626435,-1000.0,0.00051755,30]
[394595193,1763747626479,-1000.0,0.00051755,30]
[394595194,1763747626524,-1000.0,0.00051755,30]
[394595195,1763747626568,-1000.0,0.00051755,30]
[394595196,1763747626613,-1000.0,0.00051755,30]
[394595197,1763747626822,-1000.0,0.00051755,30]
[394595198,1763747626872,-1000.0,0.00051755,30]
[394595199,1763747626923,-1000.0,0.00051755,30]
[394595200,1763747626971,-1000.0,0.00051755,30]
[394595201,1763747627015,-1000.0,0.00051755,30]
[394595202,1763747627057,-1000.0,0.00051755,30]
[394595203,1763747627100,-1000.0,0.00051755,30]
[394595204,1763747627142,-1000.0,0.00051755,30]
[394595205,1763747627186,-1000.0,0.00051755,30]
[394595206,1763747627226,-1000.0,0.00051755,30]
[394595207,1763747627269,-1000.0,0.00051755,30]
[394595208,1763747627310,-1000.0,0.00051755,30]
[394595209,1763747627355,-1000.0,0.00051755,30]
[394595210,1763747627398,-499.15624338,0.00051755,30]